bitfinex-derivatives/quotes_BTCF0:USTF0_20210109
["timestamp","ask_amount","ask_price","bid_price","bid_amount"]
[1610182571634,0.54358657,40193.0,40164.0,0.13129124]
[1610182571835,0.82865869,40196.0,40164.0,0.13129124]
[1610182572034,0.82865869,40196.0,40185.0,0.13632608]
[1610182572235,0.2855,40196.0,40185.0,0.08471]
[1610182572435,0.2855,40196.0,40186.0,0.000238]
[1610182574138,0.13632608,40187.0,40185.0,0.08471]
[1610182574538,0.13632608,40187.0,40186.0,0.00023801]
[1610182574939,0.13632608,40187.0,40185.0,0.08471]
[1610182577340,0.13632608,40187.0,40167.0,0.13632608]
[1610182577741,0.13632608,40187.0,40168.0,0.00023801]
[1610182578143,0.2855,40196.0,40181.0,0.13632608]
[1610182578341,0.2855,40196.0,40181.0,0.24908608]
[1610182580145,0.13632608,40182.0,40181.0,0.24908608]
[1610182589555,0.13632608,40182.0,40181.0,0.11276]
[1610182589755,0.13632608,40182.0,40163.0,3.29051]
[1610182590158,3.5432,40193.0,40169.0,0.13632608]
[1610182590658,3.5432,40193.0,40170.0,0.00023802]
[1610182592159,0.13632608,40171.0,40170.0,0.00023802]
[1610182599064,0.13632608,40171.0,40170.0,0.01730275]
[1610182600367,3.22192608,40171.0,40170.0,0.01730275]
[1610182600567,3.22192608,40171.0,40170.0,0.00023802]
[1610182600767,0.13632608,40171.0,40164.0,0.01730503]
[1610182600967,0.13632608,40171.0,40163.0,0.10051]
[1610182600968,3.4429,40165.0,40163.0,0.10051]
[1610182601166,3.4429,40165.0,40146.0,0.09823]
[1610182601467,3.4429,40165.0,40147.0,0.01730931]
[1610182601667,3.4429,40165.0,40136.0,0.05570828]
[1610182601868,3.4429,40165.0,40147.0,0.07607]
[1610182602067,3.4429,40165.0,40148.0,0.01731246]
[1610182602467,0.13632608,40149.0,40148.0,0.01731246]
[1610182603075,3.57362608,40149.0,40148.0,0.00023814]
[1610182604870,3.57362608,40149.0,40133.0,0.13632608]
[1610182605072,3.57362608,40149.0,40134.0,0.01731649]
[1610182605873,3.57362608,40149.0,40135.0,0.01731729]
[1610182606272,3.57362608,40149.0,40135.0,0.01731716]
[1610182606474,3.57362608,40149.0,40134.0,0.0173172]
[1610182606674,0.13632608,40136.0,40133.0,0.13632608]
[1610182607077,0.13632608,40136.0,40135.0,0.01731694]
[1610182607277,0.13632608,40136.0,40134.0,0.01731789]
[1610182607475,0.13632608,40136.0,40135.0,0.0173177]
[1610182607879,0.13632608,40136.0,40135.0,0.00023819]
[1610182608277,0.13632608,40136.0,40134.0,0.00023819]
[1610182608677,0.13632608,40136.0,40135.0,0.00023819]
[1610182609078,0.13632608,40136.0,40134.0,0.00023819]
[1610182610980,0.13632608,40136.0,40130.0,0.00023821]
[1610182611182,0.13632608,40136.0,40135.0,0.00023821]
[1610182611382,0.13632608,40136.0,40131.0,0.00023821]
[1610182611783,0.13632608,40136.0,40111.0,3.0478]
[1610182611984,0.13632608,40136.0,40130.0,0.00023821]
[1610182612184,0.13632608,40136.0,40130.0,0.10794821]
[1610182612582,0.13632608,40131.0,40130.0,0.10771]
[1610182612983,0.13632608,40131.0,40130.0,0.10794822]
[1610182617687,0.13632608,40131.0,40130.0,0.10771]
[1610182618086,0.13632608,40131.0,40130.0,0.12020822]
[1610182618286,0.13632608,40131.0,40130.0,0.11997]
[1610182618486,0.13632608,40131.0,40130.0,0.12020822]
[1610182625698,0.13632608,40131.0,40130.0,0.13729454]
[1610182627503,0.61232608,40131.0,40130.0,0.13729454]
[1610182627903,0.78138598,40131.0,40130.0,0.13729454]
[1610182628103,0.78138598,40131.0,40130.0,0.12020822]
[1610182629103,0.78138598,40131.0,40130.0,0.13729906]
[1610182630707,0.30538598,40131.0,40130.0,0.13729906]
[1610182631510,0.30538598,40131.0,40130.0,0.12020822]
[1610182633110,0.30538598,40131.0,40130.0,0.13820813]
[1610182636514,0.30538598,40131.0,40130.0,0.12020822]
[1610182638314,3.66728598,40131.0,40130.0,0.12020822]
[1610182640224,3.66728598,40131.0,40130.0,0.00023822]
[1610182640616,3.66728598,40131.0,40122.0,0.00024065]
[1610182640820,0.13632608,40123.0,40122.0,0.00024065]
[1610182641214,4.27242608,40123.0,40122.0,0.00024065]
[1610182642214,4.27242608,40123.0,40091.0,0.05794157]
[1610182642415,4.27242608,40123.0,40122.0,0.00024068]
[1610182642815,4.27242608,40123.0,40106.0,0.10557]
[1610182643017,4.27242608,40123.0,40122.0,0.00024068]
[1610182643216,4.27242608,40123.0,40107.0,0.00024068]
[1610182643616,4.27242608,40123.0,40122.0,0.00024071]
[1610182643817,4.27242608,40123.0,40106.0,0.10557]
[1610182643818,4.27242608,40123.0,40108.0,0.00024071]
[1610182644016,4.27242608,40123.0,40106.0,0.10557]
[1610182644417,0.13632608,40123.0,40107.0,0.00024073]
[1610182644817,0.13632608,40108.0,40107.0,0.00024073]
[1610182652728,4.00372608,40108.0,40107.0,0.00024073]
[1610182656129,0.13632608,40108.0,40107.0,0.00024073]
[1610182659636,0.13632608,40108.0,40107.0,0.01804782]
[1610182660940,0.13632608,40108.0,40107.0,0.00024073]
[1610182661137,0.13632608,40108.0,40107.0,0.0180476]
[1610182667747,4.15652608,40108.0,40107.0,0.0180476]
[1610182668347,4.15652608,40108.0,40107.0,0.00024073]
[1610182668549,4.15652608,40108.0,40107.0,0.01804868]
[1610182669351,0.13632608,40108.0,40107.0,0.01804868]
[1610182671953,0.13632608,40108.0,40107.0,0.00024073]
[1610182672253,0.13632608,40108.0,40107.0,0.01805188]
[1610182672755,0.13632608,40108.0,40107.0,0.00024073]
[1610182673556,0.13632608,40108.0,40107.0,0.01805142]
[1610182677761,0.13632608,40108.0,40107.0,0.00024073]
[1610182679163,0.13632608,40108.0,40107.0,0.01805258]
[1610182682766,0.13632608,40108.0,40107.0,0.00024073]
[1610182684572,3.68322608,40108.0,40107.0,0.00024073]
[1610182690981,0.13632608,40108.0,40106.0,0.05951073]
[1610182691182,0.13632608,40108.0,40077.0,0.03918854]
[1610182691383,3.69436919,40108.0,40086.0,3.4636]
[1610182691784,3.69436919,40108.0,40087.0,0.05533016]
[1610182691983,3.69436919,40108.0,40087.0,0.01713902]
[1610182692186,4.14728541,40108.0,40088.0,0.01690115]
[1610182692384,3.9294,40103.0,40088.0,0.01713913]
[1610182692786,3.9294,40103.0,40087.0,0.01713869]
[1610182692986,3.9294,40103.0,40089.0,0.01713864]
[1610182693287,3.9294,40103.0,40088.0,0.01713879]
[1610182693486,3.9294,40103.0,40090.0,0.01690086]
[1610182693686,3.9294,40103.0,40090.0,0.01713884]
[1610182693886,3.9294,40103.0,40089.0,0.01713878]
[1610182694087,3.9294,40103.0,40091.0,0.01713859]
[1610182694287,3.9294,40103.0,40090.0,0.01713866]
[1610182694689,3.9294,40103.0,40092.0,0.0171386]
[1610182694889,3.9294,40103.0,40091.0,0.01713845]
[1610182695087,3.9294,40103.0,40093.0,0.01713808]
[1610182696993,0.13632608,40094.0,40093.0,0.01713808]
[1610182697396,0.13632608,40094.0,40093.0,3.00133808]
[1610182697597,0.01526146,40108.0,40093.0,3.00133808]
[1610182697799,0.45319764,40109.0,40092.0,0.13632608]
[1610182697800,0.01526476,40109.0,40094.0,0.05532367]
[1610182698000,0.09942453,40110.0,40107.0,4.7236]
[1610182698197,0.54417577,40121.0,40107.0,1.57999]
[1610182698404,0.31977577,40121.0,40108.0,0.01713355]
[1610182698600,0.1690599,40131.0,40108.0,0.01713355]
[1610182698797,0.1690599,40131.0,40129.0,3.0861]
[1610182699002,0.1690599,40131.0,40130.0,0.13632608]
[1610182699197,0.1207599,40131.0,40130.0,0.15345046]
[1610182699397,0.0381599,40131.0,40130.0,0.15345046]
[1610182699597,5.99e-05,40131.0,40130.0,0.15345046]
[1610182701200,5.99e-05,40131.0,40130.0,0.1365639]
[1610182707705,5.99e-05,40131.0,40130.0,3.95432608]
[1610182709103,5.99e-05,40131.0,40130.0,3.95456376]
[1610182709505,5.99e-05,40131.0,40130.0,0.13656376]
[1610182710108,5.99e-05,40131.0,40130.0,0.13632608]
[1610182714410,3.7807599,40131.0,40129.0,0.08751]
[1610182714613,3.7807599,40131.0,40105.0,3.0894]
[1610182715213,3.7807599,40131.0,40119.0,0.13632608]
[1610182715612,3.7807599,40131.0,40120.0,0.00023771]
[1610182717114,0.13632608,40121.0,40120.0,0.00023771]
[1610182717513,0.13632608,40121.0,40119.0,0.10423]
[1610182717916,0.4016,40120.0,40119.0,0.10423]
[1610182718517,0.4016,40120.0,40119.0,0.10446775]
[1610182718819,0.4016,40120.0,40119.0,0.10423]
[1610182719019,0.4016,40120.0,40119.0,0.10446776]
[1610182720920,0.4016,40120.0,40119.0,0.10423]
[1610182721120,0.4016,40120.0,40106.0,0.13632608]
[1610182721720,0.4016,40120.0,40107.0,0.00023777]
[1610182721920,0.13632608,40121.0,40107.0,0.10763777]
[1610182722120,3.1743,40118.0,40107.0,0.10763777]
[1610182722321,3.1743,40118.0,40108.0,0.00023779]
[1610182723421,0.13632608,40109.0,40108.0,0.00023779]
[1610182724022,3.38892608,40109.0,40108.0,0.00023779]
[1610182725426,3.38892608,40109.0,40108.0,0.01709084]
[1610182725627,3.38892608,40109.0,40108.0,0.00023779]
[1610182731933,0.13632608,40109.0,40108.0,0.00023779]
[1610182745249,0.13632608,40109.0,40108.0,0.01701296]
[1610182746452,3.389,40123.0,40108.0,0.01701296]
[1610182747454,3.389,40123.0,40122.0,0.13632608]
[1610182747654,5.99e-05,40131.0,40122.0,0.23961608]
[1610182747856,5.99e-05,40131.0,40122.0,0.25662205]
[1610182748055,5.99e-05,40131.0,40123.0,0.09110284]
[1610182748656,5.99e-05,40131.0,40125.0,3.0462]
[1610182749054,5.99e-05,40131.0,40126.0,0.05498779]
[1610182749456,5.99e-05,40131.0,40130.0,0.13632608]
[1610182749857,5.99e-05,40131.0,40130.0,0.15332216]
[1610182750256,5.99e-05,40131.0,40130.0,0.13656357]
[1610182751457,0.13638598,40131.0,40130.0,0.13656357]
[1610182752057,0.13638598,40131.0,40130.0,0.00023749]
[1610182752459,0.13638598,40131.0,40123.0,0.00023509]
[1610182752862,0.13638598,40131.0,40130.0,0.00023509]
[1610182753060,0.13638598,40131.0,40123.0,0.00023509]
[1610182753260,0.13638598,40131.0,40130.0,0.00023509]
[1610182753661,0.13638598,40131.0,40124.0,0.13656117]
[1610182753866,0.13638598,40131.0,40125.0,0.00023509]
[1610182754461,0.13638598,40131.0,40123.0,0.00023509]
[1610182754661,0.13638598,40131.0,40122.0,0.10329]
[1610182754662,0.13638598,40131.0,40126.0,0.00023509]
[1610182754862,0.13638598,40131.0,40124.0,0.00023509]
[1610182755261,0.13638598,40131.0,40127.0,0.00023509]
[1610182755461,0.13638598,40131.0,40125.0,0.00023509]
[1610182755662,0.13638598,40131.0,40128.0,0.00023509]
[1610182756062,0.13638598,40131.0,40126.0,0.00023509]
[1610182756262,0.13638598,40131.0,40129.0,0.00023511]
[1610182756463,0.13638598,40131.0,40122.0,0.10329]
[1610182756663,3.4027,40123.0,40122.0,0.10329]
[1610182756866,3.4027,40123.0,40094.0,3.7364]
[1610182757063,3.4027,40123.0,40122.0,0.00023514]
[1610182757263,3.4027,40123.0,40108.0,0.00023514]
[1610182757465,0.13632608,40109.0,40102.0,0.13632608]
[1610182757862,0.13632608,40109.0,40108.0,0.00023515]
[1610182758063,0.13632608,40109.0,40108.0,0.09831]
[1610182758263,0.13632608,40109.0,40108.0,0.09854515]
[1610182762468,0.13632608,40109.0,40108.0,0.09854516]
[1610182768373,0.13632608,40109.0,40108.0,3.08744516]
[1610182768574,0.00769068,40129.0,40108.0,3.08744516]
[1610182768776,0.00769068,40129.0,40108.0,0.17224516]
[1610182768975,0.00769029,40130.0,40108.0,0.17224516]
[1610182769175,0.00769029,40130.0,40117.0,3.7881]
[1610182769377,5.99e-05,40131.0,40118.0,0.00023511]
[1610182769575,5.99e-05,40131.0,40130.0,0.13632608]
[1610182769775,5.99e-05,40131.0,40130.0,0.22736608]
[1610182770176,5.99e-05,40131.0,40130.0,0.22760115]
[1610182771577,0.13638598,40131.0,40130.0,0.22760115]
[1610182772377,0.13638598,40131.0,40130.0,0.09127507]
[1610182777784,0.13638598,40131.0,40130.0,0.22760115]
[1610182780086,0.13638598,40131.0,40130.0,0.24340174]
[1610182780486,0.13638598,40131.0,40130.0,0.22760115]
[1610182781488,0.13638598,40131.0,40130.0,0.24340208]
[1610182781688,0.13638598,40131.0,40130.0,0.22760115]
[1610182782290,0.13638598,40131.0,40130.0,0.24340194]
[1610182783992,0.53598598,40131.0,40130.0,0.10707586]
[1610182784393,0.53598598,40131.0,40130.0,0.09127507]
[1610182785395,0.53598598,40131.0,40130.0,0.00023507]
[1610182785994,0.53598598,40131.0,40118.0,0.01603945]
[1610182786196,0.53598598,40131.0,40130.0,0.00023512]
[1610182786395,0.53598598,40131.0,40119.0,0.00023512]
[1610182786795,0.53598598,40131.0,40130.0,0.00023512]
[1610182786997,0.53598598,40131.0,40120.0,0.00023512]
[1610182787197,0.53598598,40131.0,40130.0,0.00023512]
[1610182787596,0.13638598,40131.0,40118.0,0.01603945]
[1610182787796,5.99e-05,40131.0,40130.0,0.00023512]
[1610182787997,5.99e-05,40131.0,40119.0,0.1365612]
[1610182788399,5.99e-05,40131.0,40120.0,0.01603785]
[1610182788597,5.99e-05,40131.0,40120.0,0.60803785]
[1610182788798,5.99e-05,40131.0,40121.0,0.01603695]
[1610182789799,5.99e-05,40131.0,40128.0,0.13632608]
[1610182790001,5.99e-05,40131.0,40128.0,0.24969608]
[1610182790402,5.99e-05,40131.0,40129.0,0.01603572]
[1610182791905,0.13632608,40130.0,40129.0,0.01603572]
[1610182804420,0.13632608,40130.0,40129.0,4.00463572]
[1610182804622,5.99e-05,40131.0,40129.0,4.00463572]
[1610182805224,5.99e-05,40131.0,40130.0,0.01603611]
[1610182806022,5.99e-05,40131.0,40130.0,0.12801096]
[1610182807125,5.99e-05,40131.0,40130.0,0.05271096]
[1610182808027,5.99e-05,40131.0,40129.0,0.01602991]
[1610182808228,0.0745,40130.0,40128.0,0.24969608]
[1610182808427,0.13632608,40151.0,40136.0,3.818]
[1610182809126,0.13632608,40151.0,40137.0,0.05269697]
[1610182809326,0.0748,40150.0,40137.0,0.05269697]
[1610182809928,0.0748,40150.0,40149.0,0.13632608]
[1610182810127,0.0748,40150.0,40149.0,0.22008608]
[1610182810327,0.0748,40150.0,40149.0,0.22032109]
[1610182810729,0.0748,40150.0,40149.0,0.08399501]
[1610182811127,0.13632608,40151.0,40149.0,0.08399501]
[1610182811729,0.13632608,40151.0,40150.0,0.00023501]
[1610182813331,0.21072608,40151.0,40149.0,0.08376]
[1610182814232,0.13632608,40151.0,40149.0,0.08376]
[1610182815235,0.0754,40150.0,40148.0,4.0638]
[1610182815434,0.0753,40149.0,40148.0,4.0638]
[1610182815634,0.0753,40149.0,40148.0,0.00023627]
[1610182815836,0.13632608,40151.0,40142.0,0.01652111]
[1610182816033,0.13632608,40143.0,40142.0,0.11648111]
[1610182816234,0.13632608,40143.0,40142.0,0.11624484]
[1610182816434,0.13632608,40143.0,40142.0,0.1164811]
[1610182821241,0.13632608,40143.0,40142.0,0.11624484]
[1610182821440,0.13632608,40143.0,40142.0,0.1164811]
[1610182839859,0.13632608,40143.0,40142.0,0.10019626]
[1610182847372,0.00770597,40145.0,40142.0,0.10019626]
[1610182847373,0.00770597,40145.0,40142.0,3.51779626]
[1610182847573,0.02297146,40147.0,40142.0,3.51779626]
[1610182847773,0.02297146,40147.0,40143.0,0.00023629]
[1610182847974,0.00770725,40152.0,40143.0,0.01652208]
[1610182848174,0.00770725,40152.0,40151.0,0.13632608]
[1610182848376,0.0077061,40155.0,40151.0,0.24436608]
[1610182848576,0.0077061,40155.0,40153.0,3.9341]
[1610182848776,0.13632608,40156.0,40153.0,3.9341]
[1610182848975,0.02296988,40158.0,40154.0,0.00023624]
[1610182849177,0.083007,40157.0,40154.0,0.00023624]
[1610182849579,0.09827038,40157.0,40154.0,0.00023624]
[1610182849777,0.00770732,40156.0,40154.0,0.00023624]
[1610182850176,0.13632608,40155.0,40154.0,0.00023624]
[1610182851777,0.21022608,40155.0,40154.0,0.00023624]
[1610182852379,0.13632608,40155.0,40154.0,0.00023624]
[1610182856787,0.13632608,40155.0,40153.0,3.73450806]
[1610182865002,0.13632608,40155.0,40151.0,0.10804]
[1610182865199,0.13632608,40155.0,40148.0,0.13632608]
[1610182865400,0.13632608,40155.0,40142.0,0.09996]
[1610182865401,3.9285,40153.0,40142.0,0.09996]
[1610182865599,3.9285,40153.0,40152.0,0.0002362]
[1610182865800,3.9285,40153.0,40144.0,0.1162]
[1610182865999,3.9285,40153.0,40152.0,0.00023614]
[1610182866200,1.0228511,40154.0,40152.0,0.00023614]
[1610182866400,1.0228511,40154.0,40145.0,0.00023614]
[1610182866602,1.02289217,40153.0,40145.0,0.00023614]
[1610182867001,0.47752378,40154.0,40145.0,0.00023614]
[1610182867401,1.02290941,40153.0,40145.0,0.00023614]
[1610182868203,0.13632608,40146.0,40145.0,0.00023614]
[1610182869804,0.13632608,40146.0,40145.0,0.01649318]
[1610182872210,0.13632608,40146.0,40145.0,0.00023614]
[1610182872408,0.13632608,40146.0,40145.0,0.0164932]
[1610182877314,0.21142608,40146.0,40145.0,0.0164932]
[1610182877513,0.13632608,40146.0,40145.0,0.0164932]
[1610182878417,0.13632608,40146.0,40145.0,0.0541582]
[1610182879518,0.13632608,40146.0,40145.0,0.0164932]
[1610182879717,0.13632608,40146.0,40145.0,0.05415848]
[1610182879918,0.13632608,40146.0,40145.0,0.0164932]
[1610182881120,0.13632608,40146.0,40145.0,0.05415849]
[1610182882823,0.13632608,40146.0,40145.0,0.0164932]
[1610182889132,0.13632608,40146.0,40145.0,3.6983932]
[1610182889333,0.47751182,40152.0,40145.0,3.6983932]
[1610182889734,0.47749218,40156.0,40146.0,0.0167624]
[1610182889933,0.47749218,40156.0,40146.0,0.05442221]
[1610182890134,1.0227256,40160.0,40146.0,0.05442221]
[1610182890334,1.0227256,40160.0,40159.0,1.63632608]
[1610182890536,0.45902807,40163.0,40159.0,5.19112608]
[1610182890737,0.07472807,40163.0,40159.0,1.76977915]
[1610182890935,0.00771849,40175.0,40162.0,2.8385]
[1610182891134,0.49020465,40176.0,40163.0,1.5]
[1610182891335,0.0754,40175.0,40163.0,1.5167477]
[1610182891535,0.0754,40175.0,40164.0,0.01674614]
[1610182891735,0.66513152,40197.0,40164.0,0.01674614]
[1610182891935,0.66506428,40201.0,40172.0,3.9764]
[1610182892334,0.13632608,40187.0,40186.0,0.13632608]
[1610182892536,3.27842608,40187.0,40186.0,0.13632608]
[1610182892737,3.35372608,40187.0,40173.0,0.01674184]
[1610182892941,3.35372608,40187.0,40186.0,0.0002366]
[1610182893140,3.35372608,40187.0,40174.0,0.01674356]
[1610182893344,3.35372608,40187.0,40186.0,0.00023662]
[1610182893740,3.35372608,40187.0,40175.0,0.00023664]
[1610182893939,3.35372608,40187.0,40186.0,0.00023664]
[1610182894138,3.35372608,40187.0,40176.0,0.00023664]
[1610182894339,3.1421,40187.0,40180.0,0.13632608]
[1610182894538,3.1421,40187.0,40186.0,0.00023664]
[1610182894741,3.1421,40187.0,40181.0,0.00023664]
[1610182894938,3.1421,40187.0,40186.0,0.00023664]
[1610182895339,3.1421,40187.0,40182.0,0.00023664]
[1610182895541,0.66231657,40206.0,40186.0,0.00023662]
[1610182895740,0.66231657,40206.0,40183.0,0.00023662]
[1610182895942,0.0743,40201.0,40187.0,0.00023662]
[1610182896341,0.66231657,40206.0,40195.0,0.13632608]
[1610182896740,0.66180629,40208.0,40195.0,0.13632608]
[1610182897541,0.36425574,40209.0,40195.0,0.13632608]
[1610182897939,0.36425574,40209.0,40196.0,0.00023661]
[1610182898141,0.2743,40218.0,40196.0,0.00023661]
[1610182898142,0.66131526,40212.0,40196.0,0.00023661]
[1610182898342,0.13632608,40197.0,40195.0,0.13632608]
[1610182898942,0.13632608,40197.0,40196.0,0.0002366]
[1610182900446,0.13632608,40197.0,40195.0,0.13632608]
[1610182901245,0.11003,40212.0,40195.0,0.13632608]
[1610182901447,0.66085914,40214.0,40196.0,3.7852]
[1610182901647,0.65970505,40223.0,40196.0,3.7852]
[1610182902148,0.10086,40224.0,40197.0,0.00023654]
[1610182902348,0.13632608,40198.0,40197.0,0.00023654]
[1610182902548,3.93092608,40198.0,40195.0,0.10296]
[1610182902748,0.13632608,40198.0,40195.0,0.10296]
[1610182902950,2.801,40196.0,40181.0,0.10211]
[1610182903147,2.801,40196.0,40163.0,2.8387]
[1610182903349,2.801,40196.0,40182.0,0.00023659]
[1610182903748,0.0748,40195.0,40174.0,0.10117]
[1610182904149,0.13632608,40198.0,40175.0,0.00023661]
[1610182904350,0.2886,40199.0,40192.0,0.13632608]
[1610182905349,0.2886,40199.0,40185.0,0.08499]
[1610182905350,0.5028,40198.0,40185.0,0.08499]
[1610182905552,0.0737,40197.0,40185.0,0.08499]
[1610182905749,4.0095,40189.0,40185.0,0.08499]
[1610182906151,4.0095,40189.0,40174.0,0.10117]
[1610182906350,0.13632608,40175.0,40174.0,0.10117]
[1610182907553,0.65901372,40203.0,40174.0,0.10140664]
[1610182907753,0.65898569,40209.0,40175.0,0.00023664]
[1610182908154,3.4479,40210.0,40175.0,0.00023664]
[1610182908354,3.4479,40210.0,40188.0,0.13632608]
[1610182909155,0.2873,40212.0,40188.0,0.13632608]
[1610182910454,0.13632608,40189.0,40188.0,0.13632608]
[1610182912656,0.11621,40203.0,40188.0,0.56362608]
[1610182912857,0.65801027,40222.0,40188.0,0.20970265]
[1610182913057,0.65801027,40222.0,40201.0,2.8274]
[1610182913257,0.65799268,40229.0,40201.0,2.93768]
[1610182913659,2.04671819,40245.0,40201.0,2.93768]
[1610182913660,0.65768445,40232.0,40201.0,2.93768]
[1610182913860,0.65768445,40232.0,40201.0,0.11028]
[1610182914061,2.8763,40218.0,40201.0,0.11028]
[1610182914260,0.07446,40221.0,40201.0,0.11028]
[1610182914460,0.13632608,40202.0,40193.0,2.9235]
[1610182916462,0.13632608,40202.0,40201.0,0.13632608]
[1610182916663,0.13632608,40202.0,40201.0,0.25198608]
[1610182916862,0.13632608,40202.0,40201.0,0.2522226]
[1610182917063,0.07446,40221.0,40201.0,0.2522226]
[1610182917263,0.07446,40221.0,40202.0,0.0756]
[1610182917463,0.07446,40221.0,40203.0,0.48993652]
[1610182917764,0.07446,40221.0,40203.0,0.4897]
[1610182917963,0.07446,40221.0,40202.0,0.00023652]
[1610182918166,0.07446,40221.0,40204.0,3.3825365]
[1610182918366,0.07446,40221.0,40220.0,0.13632608]
[1610182918965,0.64033856,40237.0,40220.0,0.13632608]
[1610182919567,0.36407557,40245.0,40220.0,0.13632608]
[1610182919866,0.00030338,40244.0,40220.0,0.13632608]
[1610182920068,0.09733338,40244.0,40220.0,0.13632608]
[1610182920268,0.46139057,40244.0,40221.0,3.7919]
[1610182920466,0.00030338,40243.0,40229.0,0.13632608]
[1610182921168,0.0735,40242.0,40229.0,0.13632608]
[1610182921368,0.00030338,40243.0,40229.0,0.13632608]
[1610182921569,0.00030336,40241.0,40229.0,0.13632608]
[1610182921772,0.00030336,40241.0,40221.0,3.7919]
[1610182921970,0.00030336,40243.0,40221.0,3.7919]
[1610182922372,0.00030336,40240.0,40229.0,0.13632608]
[1610182922572,0.0739,40239.0,40229.0,0.13632608]
[1610182922772,0.07420336,40239.0,40223.0,0.075]
[1610182922971,0.00030336,40239.0,40223.0,0.075]
[1610182923171,0.00030336,40238.0,40223.0,0.075]
[1610182923572,0.00030336,40243.0,40223.0,0.075]
[1610182923972,0.09703,40244.0,40221.0,3.7919]
[1610182924172,0.00030332,40242.0,40221.0,3.7919]
[1610182924373,0.00030332,40243.0,40236.0,0.13632608]
[1610182924771,0.00030332,40243.0,40214.0,0.08496]
[1610182924971,4.0171,40237.0,40214.0,0.08496]
[1610182925171,0.0753,40236.0,40214.0,0.08496]
[1610182925370,0.0753,40236.0,40174.0,1.60117]
[1610182925371,0.0753,40236.0,40215.0,0.00023644]
[1610182925572,2.9197,40225.0,40215.0,0.00023644]
[1610182925772,2.9197,40225.0,40192.0,3.355]
[1610182926172,2.9197,40225.0,40202.0,0.00023646]
[1610182926372,2.9197,40225.0,40202.0,0.24367254]
[1610182926572,2.9197,40225.0,40202.0,0.24343608]
[1610182926773,2.9197,40225.0,40203.0,0.00023646]
[1610182926974,2.9197,40225.0,40203.0,0.53573646]
[1610182927374,2.9197,40225.0,40204.0,0.00023644]
[1610182927774,2.9197,40225.0,40203.0,0.5355]
[1610182928376,2.9197,40225.0,40221.0,0.13632608]
[1610182928576,0.0733,40224.0,40221.0,0.13632608]
[1610182928776,2.9197,40225.0,40221.0,0.13632608]
[1610182928976,0.09397,40228.0,40221.0,0.13632608]
[1610182929375,0.54314539,40244.0,40221.0,0.13632608]
[1610182929776,0.09703,40244.0,40221.0,0.13632608]
[1610182929975,0.00030336,40243.0,40221.0,0.13632608]
[1610182930176,0.07560336,40243.0,40221.0,0.13632608]
[1610182930375,0.13632608,40222.0,40221.0,0.13632608]
[1610182930576,0.13632608,40222.0,40213.0,0.11004]
[1610182931578,0.0739,40221.0,40214.0,0.0755]
[1610182931777,0.13632608,40222.0,40214.0,0.0755]
[1610182931976,0.1489,40230.0,40213.0,0.11004]
[1610182932378,0.1489,40230.0,40220.0,0.13632608]
[1610182932577,0.2719,40246.0,40220.0,0.13632608]
[1610182933177,0.00030336,40243.0,40220.0,0.13632608]
[1610182933677,0.075,40242.0,40220.0,0.13632608]
[1610182934081,0.00030336,40241.0,40220.0,0.13632608]
[1610182934278,0.53830336,40241.0,40220.0,0.13632608]
[1610182934478,0.13632608,40221.0,40220.0,0.13632608]
[1610182935080,0.13632608,40221.0,40213.0,0.11004]
[1610182935282,0.13632608,40221.0,40203.0,4.0152]
[1610182936282,0.13632608,40221.0,40204.0,0.00023661]
[1610182936483,0.2837,40235.0,40212.0,0.13632608]
[1610182936682,0.2837,40235.0,40212.0,0.24246608]
[1610182937983,0.0752,40234.0,40212.0,0.24246608]
[1610182938583,0.13632608,40213.0,40212.0,0.24246608]
[1610182939183,0.13632608,40213.0,40212.0,0.24270266]
[1610182939984,0.21062608,40213.0,40212.0,0.24270266]
[1610182940484,0.13632608,40213.0,40212.0,0.24270266]
[1610182940884,0.13632608,40213.0,40212.0,3.60890266]
[1610182941083,0.13172608,40213.0,40212.0,3.60890266]
[1610182941284,0.4469158,40247.0,40212.0,3.60890266]
[1610182941484,0.44687346,40250.0,40212.0,3.62544535]
[1610182941685,0.00030333,40243.0,40212.0,3.62544535]
[1610182941885,0.00030333,40243.0,40213.0,0.01677896]
[1610182942086,0.00030333,40245.0,40213.0,0.01677896]
[1610182942287,0.08838,40249.0,40213.0,0.01677896]
[1610182942288,0.00030333,40242.0,40213.0,0.01677896]
[1610182942484,0.00030333,40242.0,40224.0,0.13632608]
[1610182942686,0.00030333,40242.0,40224.0,0.25160608]
[1610182942886,0.00030333,40245.0,40225.0,0.00023656]
[1610182943086,0.0743,40244.0,40225.0,0.00023656]
[1610182943287,0.07460332,40244.0,40225.0,0.00023656]
[1610182943488,0.00030332,40244.0,40225.0,0.00023656]
[1610182943687,0.08838,40249.0,40225.0,0.00023656]
[1610182944086,0.00030331,40248.0,40225.0,0.00023656]
[1610182944286,0.00030331,40248.0,40226.0,0.0735]
[1610182944488,0.00030331,40248.0,40229.0,0.13632608]
[1610182944891,0.00030331,40248.0,40230.0,0.00023654]
[1610182944892,0.0747,40247.0,40230.0,0.00023654]
[1610182945192,0.00030331,40246.0,40230.0,0.00023654]
[1610182945991,0.08838,40249.0,40230.0,0.00023654]
[1610182945992,0.00030331,40248.0,40230.0,0.00023654]
[1610182946192,0.00030331,40245.0,40230.0,0.00023654]
[1610182946592,0.13632608,40247.0,40244.0,0.13632608]
[1610182947397,0.13632608,40247.0,40245.0,0.00023649]
[1610182947595,0.0754,40246.0,40245.0,0.00023649]
[1610182948499,0.13632608,40247.0,40245.0,0.00023649]
[1610182948898,0.13632608,40247.0,40243.0,0.00023649]
[1610182949101,0.13632608,40247.0,40246.0,0.00023649]
[1610182949300,0.13632608,40247.0,40243.0,0.00023649]
[1610182949700,0.13632608,40247.0,40246.0,0.00023647]
[1610182949904,0.03123362,40253.0,40246.0,0.0741]
[1610182950102,0.03123362,40253.0,40246.0,0.07433644]
[1610182950504,0.03123362,40253.0,40252.0,3.63592608]
[1610182950901,0.03123362,40253.0,40252.0,3.63616248]
[1610182952903,0.03123362,40253.0,40252.0,0.13656248]
[1610182955805,0.03123362,40253.0,40252.0,4.10556248]
[1610182956204,3.362e-05,40253.0,40252.0,4.10556248]
[1610182957206,0.13632608,40277.0,40252.0,0.13632608]
[1610182957409,0.13632608,40277.0,40260.0,3.8763]
[1610182957607,0.13632608,40277.0,40260.0,3.95106]
[1610182957807,0.13632608,40277.0,40264.0,2.9764]
[1610182958008,0.0737,40276.0,40264.0,2.9764]
[1610182958208,0.44744212,40296.0,40264.0,2.9764]
[1610182958408,0.08434,40298.0,40264.0,2.9764]
[1610182958607,0.08434,40298.0,40287.0,0.13632608]
[1610182959208,0.65558471,40309.0,40287.0,0.13632608]
[1610182959408,0.65550354,40312.0,40287.0,0.13632608]
[1610182959810,0.36344675,40316.0,40287.0,0.13632608]
[1610182960210,0.2813,40317.0,40287.0,0.13632608]